[Event "Julius Baer Generation Cup Prelims 2022"]
[Site "Online"]
[Date "2022.09.14"]
[Round "14.8"]
[White "Keymer, Vincent"]
[Black "Erigaisi Arjun"]
[Result "1-0"]
[ECO "D37"]
[WhiteElo "2693"]
[BlackElo "2725"]
[Annotator "TA"]
[PlyCount "203"]
[EventDate "2022.09.12"]
[EventType "tourn"]
[EventCountry "NET"]
[SourceTitle "playchess.com"]
[Source "ChessBase"]
[SourceQuality "1"]
[TimeControl "900+10"]

{[%evp 9,203,19,25,27,29,30,25,30,25,20,26,28,28,27,29,24,33,24,25,32,33,27,33,31,30,34,27,29,41,31,52,38,47,29,64,49,63,52,60,56,134,137,137,81,85,68,86,86,75,77,77,79,72,71,66,38,38,30,37,40,35,24,148,80,206,170,168,167,154,125,123,79,85,50,93,93,93,93,93,71,130,126,126,127,138,93,93,93,149,142,141,102,97,93,93,93,528,485,1004,3075,5489,5566,4785,2208,29954,29956,29956,29958,29956,29957,29956,29944,12850,2789,29947,1869,29961,29960,29965,29966,29968,29970,29970,29972,29972,29971,29971,29972,29972,29969,29969,29970,29970,29971,29971,29967,29966,29967,29967,29968,29972,29973,29973,29974,29974,29971,29975,29972,29972,29970,29970,29970,29973,29971,29972,29971,29972,29973,29974,29972,29972,29966,29966,29967,29971,29968,29965,29969,29969,29970,29970,29969,29969,29970,29969,29970,29967,29964,29976,29977,29972,29963,29972,29973,29974,29974,29981,29982,29981,29981,29981,29982,29982,29983,29985,29986]} 1. Nf3 {[%emt 0:00:00]} a6 {[%emt 0:00:00]} 2. d4 {[%emt 0:00:17]} Nf6 {[%emt 0:00:05]} 3. c4 {[%emt 0:00:18]} e6 {[%emt 0:00:03]} 4. Nc3 {[%emt 0:00:04]} d5 {[%emt 0:00:02]} 5. cxd5 {[%emt 0:00:01]} exd5 {[%emt 0:00:01]} 6. Bg5 {[%emt 0:00:01] D37: Queen's Gambit Declined: 5 Bf4.} Be6 {[%emt 0:00:01]} 7. e3 {[%emt 0:00:01]} Nbd7 {[%emt 0:00:02]} 8. Bd3 {[%emt 0:00:03] White has an edge.} Bd6 {[%emt 0:00:07]} 9. h3 {[%emt 0:00:06]} c6 {[%emt 0:00:08]} 10. Bf4 {[%emt 0:00:03]} Qc7 {[%emt 0:00:12]} 11. Qd2 {[%emt 0:00:03]} O-O {[%emt 0:00:09]} 12. O-O {[%emt 0:00:03]} Rfe8 {[%emt 0:00:32]} 13. Rfe1 {[%emt 0:00:18]} h6 {[%emt 0:00:15]} 14. Rac1 {[%emt 0:00:12]} Nh5 {[%emt 0:01:16][%cal Rh5f4]} 15. Bxd6 {[%emt 0:00:26]} Qxd6 {[%emt 0:00:00]} 16. Qc2 {[%emt 0:01:57] [#]} Rac8 $146 {[%emt 0:01:06]} ({Predecessor:} 16... g6 17. Ne2 Ng7 18. Ng3 a5 19. Qd2 f5 20. Nh4 Bf7 21. f4 Qb4 22. Rc3 c5 {1-0 (35) Albornoz Cabrera,C (2578)-Gedajlovic,M (2316) Maia 2022}) 17. Na4 {[%emt 0:00:14][%cal Ob2b4]} Nhf6 {[%emt 0:00:35]} 18. Nd2 {[%emt 0:00:09]} a5 {[%emt 0:00:42]} 19. Nc3 {[%emt 0:00:41]} b5 {[%emt 0:00:35]} 20. b3 {[%emt 0:01:21]} Nb6 {[%emt 0:01:03]} 21. Ne2 {[%emt 0:00:03]} Nfd7 {[%emt 0:00:32] Prevents Qc5.} 22. Nf4 {[%emt 0:00:38]} b4 {[%emt 0:00:04]} 23. Nxe6 {[%emt 0:02:30]} fxe6 {[%emt 0:01:48]} 24. e4 {[%emt 0:01:23]} (24. Ba6 {seems wilder.} Rc7 25. Qg6 Rd8 26. Rc2) 24... dxe4 {[%emt 0:01:24]} (24... c5 $14) 25. Nxe4 $16 {[%emt 0:00:21]} ({Resist} 25. Bxe4 $6 Qxd4 26. Nf3 Qd6 $14) (25. Rxe4 c5 $16) 25... Qf8 {[%emt 0:00:03]} (25... Qxd4 $2 26. Rcd1 Nd5 27. Nd6 $18) 26. Nd2 {[%emt 0:02:49]} (26. Ba6 $142) 26... c5 {[%emt 0:01:07]} 27. Ba6 {[%emt 0:00:11]} Ra8 {[%emt 0:00:39]} 28. dxc5 {[%emt 0:00:13]} Rxa6 {[%emt 0:01:06]} 29. cxb6 {[%emt 0:00:02]} Rxb6 {[%emt 0:00:00]} 30. Nc4 {[%emt 0:00:01][%csl LRa5,LRb6] Prevents Rd6.} Ra6 {[%emt 0:00:35]} 31. Qe2 {[%emt 0:00:52] White is more active.} Nf6 {[%emt 0:00:19]} 32. Rcd1 $36 {[%emt 0:00:23][%mdl 2048] White fights for an advantage.} (32. Ne5 $5 {[%cal Re2a6]} Qd6 33. Qb5 $16) 32... Rd8 {[%emt 0:00:15]} 33. Qe5 {[%emt 0:01:07]} Nd5 {[%emt 0:01:29]} 34. Rd3 {[%emt 0:00:24]} Qf6 {[%emt 0:00:06]} 35. Qe4 {[%emt 0:01:06]} a4 {[%emt 0:00:37]} (35... Rf8 $1 $11 {remains equal.}) 36. Ne5 {[%emt 0:00:58]} (36. Rf3 $142 Qe7 37. Ne5) 36... Nc3 {[%emt 0:01:06]} (36... axb3 $16 37. axb3 Rf8) 37. Qxb4 {[%emt 0:00:35]} Rxd3 {[%emt 0:00:14]} 38. Nxd3 {[%emt 0:00:00][%cal Be5d3,Bd3f4,Bf4h5][%mdl 32] Strongly threatening Nc5.} axb3 {[%emt 0:00:28]} 39. axb3 {[%emt 0:00:05]} Ra2 {[%emt 0:00:09]} 40. Qg4 {[%emt 0:00:46] Against Ne2+} Qf5 {[%emt 0:00:19]} 41. Nf4 {[%emt 0:00:36]} Qxg4 {[%emt 0:00:22]} 42. hxg4 $14 {[%emt 0:00:00][%mdl 4096] Endgame KRN-KRN} Rb2 {[%emt 0:00:00]} 43. Rxe6 {[%emt 0:00:16]} Rxb3 {[%emt 0:00:02]} 44. Re8+ {[%emt 0:00:01]} Kh7 {[%emt 0:00:30]} ({Better is} 44... Kf7 45. Rc8 Nb5) 45. Re7 $16 {[%emt 0:00:11]} Kg8 {[%emt 0:00:44]} 46. Nh5 {[%emt 0:00:25]} g5 {[%emt 0:00:51]} 47. Re3 {[%emt 0:00:09]} Rb1+ {[%emt 0:00:09]} 48. Kh2 {[%emt 0:00:02]} Nd5 {[%emt 0:00:00]} (48... Nd1 $142) 49. Re5 {[%emt 0:00:03]} Nb4 {[%emt 0:00:15]} 50. Rb5 {[%emt 0:00:14]} Rb2 {[%emt 0:00:04]} 51. Rb8+ {[%emt 0:00:02]} Kf7 {[%emt 0:00:08]} 52. Rb7+ {[%emt 0:00:00]} Kf8 $2 {[%emt 0:00:12][%mdl 8192] [#]} (52... Kg8 $16) 53. Ng3 $1 $18 {[%emt 0:00:13]} Nd3 {[%emt 0:00:10]} (53... Ke8 $142 54. Rb6 Nd3 55. Rxb2 (55. Rxh6 Nxf2 56. Ra6 Nxg4+ 57. Kh3 Nf2+ 58. Kh2 Kd7 $11) 55... Nxb2) 54. Rxb2 {[%emt 0:00:02]} Nxb2 {[%emt 0:00:00] KN-KN} 55. Nf5 {[%emt 0:00:00]} Nd3 {[%emt 0:00:02]} 56. Kg3 {[%emt 0:00:07]} Nc5 {[%emt 0:00:13]} 57. Nxh6 {[%emt 0:00:09]} Kg7 {[%emt 0:00:00]} 58. Nf5+ {[%emt 0:00:01]} Kf6 {[%emt 0:00:00]} 59. Kf3 {[%emt 0:00:05]} Nd3 {[%emt 0:00:04]} 60. Ne3 {[%emt 0:00:15]} Ke5 {[%emt 0:00:01]} 61. g3 {[%emt 0:00:06] [#] Threatening mate with Ke2.} Nc5 {[%emt 0:00:02]} 62. Nc4+ {[%emt 0:00:13]} (62. Nf5 $142 Na4 63. Ke3 Nc3 64. f4+ Kf6 65. Nd6 Ke7 66. Ne4 (66. fxg5 Nd5+ 67. Kd4 Kxd6 $11) 66... gxf4+ 67. gxf4 Nd5+ 68. Kf3) 62... Kd5 {[%emt 0:00:06]} 63. Nd2 {[%emt 0:00:01] White mates.} Nd7 {[%emt 0:00:44]} 64. Ke3 {[%emt 0:00:19]} Ne5 {[%emt 0:00:07]} 65. f3 {[%emt 0:00:03]} Nf7 {[%emt 0:00:14]} 66. Ne4 {[%emt 0:00:04]} Ke6 {[%emt 0:00:27]} 67. Kd4 {[%emt 0:00:03]} Ke7 {[%emt 0:00:07]} 68. Kd5 {[%emt 0:00:07]} Kd7 {[%emt 0:00:04]} 69. Nc5+ {[%emt 0:00:47]} Ke7 {[%emt 0:00:02]} 70. Nd3 {[%emt 0:00:41]} Kf6 {[%emt 0:00:07]} 71. Nf2 {[%emt 0:00:27]} Ke7 {[%emt 0:00:02]} 72. Nd1 {[%emt 0:00:03]} Kf6 {[%emt 0:00:05]} 73. Nc3 {[%emt 0:00:02]} Ke7 {[%emt 0:00:01]} 74. Nb5 {[%emt 0:00:17]} Kf6 {[%emt 0:00:07]} 75. Nd6 {[%emt 0:00:06]} Nd8 {[%emt 0:00:20]} 76. Ne4+ {[%emt 0:00:10]} Kg6 {[%emt 0:00:01]} 77. Kd6 {[%emt 0:00:01]} Nb7+ {[%emt 0:00:20]} 78. Ke7 {[%emt 0:00:11]} Na5 {[%emt 0:00:03]} 79. Nd2 {[%emt 0:00:28]} Nc6+ {[%emt 0:00:05]} 80. Kd6 {[%emt 0:00:05]} Nd4 {[%emt 0:00:03]} 81. Kd5 {[%emt 0:00:27]} Nc2 {[%emt 0:00:21]} 82. Ke5 {[%emt 0:00:09]} Ne1 {[%emt 0:00:08]} 83. Ke4 {[%emt 0:00:11]} Nc2 {[%emt 0:00:02]} 84. Nc4 {[%emt 0:00:02]} Kf6 {[%emt 0:00:11]} 85. Ne3 {[%emt 0:00:02]} Na3 {[%emt 0:00:06]} 86. f4 {[%emt 0:00:13][%cal Bf3f4,Bf4f5][%mdl 32]} Nb1 {[%emt 0:00:17]} 87. Nd5+ {[%emt 0:00:08]} Ke6 {[%emt 0:00:08]} 88. f5+ {[%emt 0:00:05]} Kd6 {[%emt 0:00:01]} 89. Nf6 {[%emt 0:00:18]} Nd2+ {[%emt 0:00:27]} 90. Ke3 {[%emt 0:00:11]} Nf1+ {[%emt 0:00:01]} 91. Kf2 {[%emt 0:00:07]} Nd2 {[%emt 0:00:05]} 92. Ke2 {[%emt 0:00:02]} Nc4 {[%emt 0:00:12]} 93. Ne4+ {[%emt 0:00:18]} Kd5 {[%emt 0:00:09]} 94. Nxg5 {[%emt 0:00:14]} Ne5 {[%emt 0:00:01]} 95. f6 {[%emt 0:00:07]} Kd6 {[%emt 0:00:02]} 96. Ne4+ {[%emt 0:00:16]} Kd5 {[%emt 0:00:03]} 97. Ke3 {[%emt 0:00:25]} Nxg4+ {[%emt 0:00:03]} 98. Kf4 {[%emt 0:00:01]} Ne5 {[%emt 0:00:01]} 99. Kf5 {[%emt 0:00:11]} Nf7 {[%emt 0:00:02]} 100. Ng5 {[%emt 0:00:12]} Nd6+ {[%emt 0:00:02]} 101. Kg6 {[%emt 0:00:02]} Kd4 {[%emt 0:00:10]} 102. f7 {[%emt 0:00:03] Weighted Error Value: White=0.10 (very precise) /Black=0.37} 1-0

[Event "Julius Baer Generation Cup Prelims 2022"]
[Site "Online"]
[Date "2022.09.14"]
[Round "15.1"]
[White "Erigaisi Arjun"]
[Black "Giri, Anish"]
[Result "0-1"]
[ECO "B51"]
[WhiteElo "2725"]
[BlackElo "2764"]
[Annotator "TA"]
[PlyCount "114"]
[EventDate "2022.09.12"]
[EventType "tourn"]
[EventCountry "NET"]
[SourceTitle "playchess.com"]
[Source "ChessBase"]
[SourceQuality "1"]
[TimeControl "900+10"]

{[%evp 9,114,21,29,9,36,9,6,7,8,0,0,0,25,-28,-20,-22,-25,-33,-20,-40,-39,-38,-41,-54,-55,-52,-49,-49,-45,-50,-39,-52,-44,-95,-62,-71,-67,-116,-112,-115,-109,-99,-108,-145,-151,-149,-160,-160,-160,-188,-171,-160,-160,-160,-150,-148,-152,-210,-215,-241,-245,-279,-279,-279,-279,-279,-271,-271,-259,-252,-239,-257,-197,-190,-187,-182,-147,-485,-479,-627,-641,-600,-594,-704,-661,-647,-617,-1424,-1372,-29969,-29967,-29971,-29971,-29973,-29972,-29977,-29978,-29978,-29979,-29979,-29980,-29980,-29981,-29981,-29982,-29981,-29980]} 1. e4 {[%emt 0:00:00]} c5 {[%emt 0:00:00]} 2. Nf3 {[%emt 0:00:02]} d6 {[%emt 0:00:01]} 3. Bb5+ {[%emt 0:00:02]} Nd7 {[%emt 0:00:01]} 4. O-O {[%emt 0:00:02]} a6 {[%emt 0:00:03]} 5. Bd3 {[%emt 0:00:06]} Ngf6 {[%emt 0:00:03]} 6. Re1 {[%emt 0:00:04] B51: Sicilian: Moscow Variation (3 Bb5+) without 3...Bd7.} Qc7 {[%emt 0:00:19]} 7. a4 {[%emt 0:00:22]} b6 {[%emt 0:00:15] [#]} 8. c4 $146 {[%emt 0:01:59][%cal Oa4a5] The position is equal.} ({Predecessor:} 8. c3 Bb7 9. Bc2 c4 10. b3 cxb3 11. Bxb3 Nc5 12. d3 Nxb3 13. Qxb3 e6 14. c4 {½-½ (65) Studer,N (2403)-Kargin,A (2444) Marianske Lazne 2015}) 8... e6 {[%emt 0:01:21]} 9. Nc3 {[%emt 0:00:05]} Be7 {[%emt 0:00:07]} 10. Bf1 {[%emt 0:00:44]} O-O {[%emt 0:01:21]} 11. h3 {[%emt 0:00:13]} (11. d4 $142) 11... Ne5 $11 {[%emt 0:00:44]} 12. d3 {[%emt 0:00:07]} Nfd7 {[%emt 0:00:10][%cal Bf6d7,Bd7e5,Be5c6,Bc6d4][%mdl 32]} 13. Be3 {[%emt 0:00:27]} Bf6 {[%emt 0:01:05]} 14. Rc1 {[%emt 0:03:11]} Nxf3+ {[%emt 0:00:16]} 15. Qxf3 {[%emt 0:00:00]} Ne5 {[%emt 0:00:01]} 16. Qg3 {[%emt 0:00:09]} Nc6 {[%emt 0:00:13]} 17. f4 {[%emt 0:00:34]} Nd4 {[%emt 0:01:22]} 18. Qf2 {[%emt 0:00:54]} Rb8 {[%emt 0:01:10]} 19. Kh1 {[%emt 0:00:40]} Qd8 {[%emt 0:00:54]} 20. g3 {[%emt 0:00:28]} Bd7 {[%emt 0:01:12]} 21. Bg2 {[%emt 0:00:02]} (21. Rb1 $15) 21... b5 {[%emt 0:00:26]} 22. axb5 {[%emt 0:00:02]} axb5 {[%emt 0:00:01]} 23. cxb5 {[%emt 0:00:10]} (23. e5 $15 dxe5 24. Ne4) 23... Bxb5 $17 {[%emt 0:00:02]} 24. Red1 {[%emt 0:00:48]} Bc6 {[%emt 0:00:03]} 25. Kh2 {[%emt 0:00:29]} Rb3 {[%emt 0:00:16]} 26. e5 {[%emt 0:00:26]} dxe5 {[%emt 0:01:42]} ({Weaker is} 26... Bxg2 27. exf6 Ba8 28. Bxd4 cxd4 29. Ne4 $15) 27. Bxc6 {[%emt 0:01:20]} Nxc6 {[%emt 0:00:03]} 28. Bxc5 {[%emt 0:00:00]} exf4 {[%emt 0:00:21]} 29. gxf4 {[%emt 0:00:30]} Bd4 {[%emt 0:00:38]} 30. Bxd4 {[%emt 0:00:47]} Qxd4 {[%emt 0:00:27]} 31. Rd2 {[%emt 0:00:04]} Rfb8 {[%emt 0:00:50] Black is more active.} 32. Ne4 {[%emt 0:00:30]} Qxf2+ {[%emt 0:00:06]} 33. Rxf2 {[%emt 0:00:18]} (33. Nxf2 $17 {is a better defense.} Nb4 34. Kg3) 33... Nb4 $19 {[%emt 0:00:06]} 34. Nc5 {[%emt 0:01:25]} Nxd3 {[%emt 0:00:25]} 35. Nxd3 {[%emt 0:00:22]} Rxd3 {[%emt 0:00:02]} 36. Rc3 {[%emt 0:00:00]} Rxc3 {[%emt 0:00:41]} 37. bxc3 {[%emt 0:00:00][%mdl 4096] Endgame [#] KR-KR} Rc8 {[%emt 0:00:02]} 38. Rf3 {[%emt 0:00:19]} g6 {[%emt 0:00:24]} 39. Kg3 {[%emt 0:00:03]} Kg7 {[%emt 0:00:54]} 40. Kf2 {[%emt 0:00:02]} Kf6 {[%emt 0:00:01]} 41. Ke2 {[%emt 0:00:01]} Kf5 {[%emt 0:00:20]} 42. Kd3 {[%emt 0:00:01] Prevents Rc4.} Rd8+ {[%emt 0:00:00]} 43. Kc4 $2 {[%emt 0:00:31][%mdl 8192] This costs White the game.} (43. Ke3 $17 {nothing else works.}) 43... Rd1 {[%emt 0:00:30] White must now prevent ...Ke4.} 44. Kb5 {[%emt 0:00:28]} Ke4 {[%emt 0:00:38]} 45. Rf2 {[%emt 0:00:02]} Rc1 {[%emt 0:00:48]} 46. c4 {[%emt 0:00:15]} Ke3 {[%emt 0:00:05]} 47. Ra2 {[%emt 0:00:18]} f5 {[%emt 0:00:06][%cal Bf7f5,Bf5f4,Bf4f3,Bf3f2][%mdl 32]} 48. Ra6 {[%emt 0:00:13]} Kxf4 {[%emt 0:00:08] Threatens to win with ...e5.} 49. Rxe6 {[%emt 0:00:01] [#]} Kg3 $1 {[%emt 0:00:04] Black mates.} 50. Re7 {[%emt 0:00:38]} Kxh3 {[%emt 0:00:34]} 51. Rxh7+ {[%emt 0:00:02]} Kg4 {[%emt 0:00:00]} 52. c5 {[%emt 0:00:17]} f4 {[%emt 0:00:02]} 53. c6 {[%emt 0:00:05]} f3 {[%emt 0:00:03]} 54. Rf7 {[%emt 0:00:03]} g5 {[%emt 0:00:10][%cal Bg6g5,Bg5g4][%mdl 32]} 55. Kb6 {[%emt 0:00:09]} Kg3 {[%emt 0:00:06]} 56. c7 {[%emt 0:00:02]} f2 {[%emt 0:00:09]} 57. Kb7 {[%emt 0:00:12]} g4 {[%emt 0:00:11] Weighted Error Value: White=0.36/Black=0.04 (flawless)} 0-1

[Event "Julius Baer Generation Cup Prelims 2022"]
[Site "Online"]
[Date "2022.09.14"]
[Round "15.2"]
[White "Carlsen, Magnus"]
[Black "Keymer, Vincent"]
[Result "1-0"]
[ECO "E04"]
[WhiteElo "2861"]
[BlackElo "2693"]
[Annotator "TA"]
[PlyCount "131"]
[EventDate "2022.09.12"]
[EventType "tourn"]
[EventCountry "NET"]
[SourceTitle "playchess.com"]
[Source "ChessBase"]
[SourceQuality "1"]
[TimeControl "900+10"]

{[%evp 12,131,23,0,0,0,0,0,0,0,23,27,25,19,22,0,0,0,0,0,0,0,18,0,0,0,9,13,14,20,24,0,0,-10,-7,-32,-32,-37,-31,-50,-56,-83,-83,-78,-68,-76,-78,-76,-86,-76,-76,-83,-68,-96,-96,-96,-68,-318,-305,-339,-132,-143,-121,-125,0,-146,-146,-489,-93,-81,0,-491,0,0,0,0,0,0,0,0,0,0,0,0,0,0,0,0,0,0,743,750,604,597,589,564,584,580,29968,29964,29972,29973,29973,29974,29974,29974,29973,29971,29978,29979,29986,29986,29986,29987,29987,29988,29988,29987,29988,29989,29991,29992]} 1. c4 {[%emt 0:00:00]} Nf6 {[%emt 0:00:00]} 2. g3 {[%emt 0:00:01]} e6 {[%emt 0:00:02]} 3. Bg2 {[%emt 0:00:07]} d5 {[%emt 0:00:03]} 4. d4 {[%emt 0:00:02]} Bb4+ {[%emt 0:00:03]} 5. Nd2 {[%emt 0:00:01]} O-O {[%emt 0:00:07]} 6. Ngf3 {[%emt 0:00:02]} dxc4 {[%emt 0:00:03]} 7. Qc2 {[%emt 0:00:06]} (7. a3 $5 {[%cal Ra3b4]} Bxd2+ 8. Bxd2 $11) 7... a5 {[%emt 0:00:02] E04: Open Catalan: 5 Nf3.} 8. a3 $1 {[%emt 0:00:12] 8.a3 is better than 8.0-0.} Bxd2+ {[%emt 0:00:02]} 9. Bxd2 {[%emt 0:00:01]} b5 {[%emt 0:00:00] The position is equal.} 10. a4 {[%emt 0:00:01]} Bb7 {[%emt 0:00:20]} 11. axb5 {[%emt 0:00:18]} Qd5 {[%emt 0:00:01]} 12. O-O {[%emt 0:00:31]} Qxb5 {[%emt 0:00:02] [#]} 13. Rfc1 $146 {[%emt 0:00:07]} ({Predecessor:} 13. Qa4 Qa6 14. Qxa5 Qc6 15. Qc5 Qxc5 16. dxc5 Nbd7 17. Nd4 Bxg2 18. Kxg2 h5 19. Bb4 {1-0 (31) Esipenko,A (2682)-Keymer,V (2686) Biel 2022}) 13... Bd5 {[%emt 0:00:17]} 14. Ne5 {[%emt 0:01:20]} Nc6 $1 {[%emt 0:01:01]} 15. Nxc6 {[%emt 0:01:57]} Qxc6 {[%emt 0:00:00]} 16. f3 {[%emt 0:00:02]} Qb6 {[%emt 0:00:22]} 17. e4 {[%emt 0:00:20]} Qxd4+ {[%emt 0:01:06]} 18. Kh1 {[%emt 0:00:03]} Bb7 {[%emt 0:03:07]} 19. Bxa5 {[%emt 0:00:20]} Qe5 {[%emt 0:00:33]} 20. Bc3 {[%emt 0:00:39] A strong pair of Bishops.} Qc5 {[%emt 0:00:12]} 21. Rxa8 {[%emt 0:00:24]} Rxa8 {[%emt 0:00:07]} 22. Qd2 {[%emt 0:00:08]} Ne8 {[%emt 0:01:03][%cal Bf6e8,Be8d6,Bd6b5][%mdl 32]} 23. Rd1 {[%emt 0:00:24]} h6 {[%emt 0:00:11]} 24. Qf4 {[%emt 0:00:31]} Nd6 {[%emt 0:01:14]} 25. h4 {[%emt 0:00:18]} Nb5 {[%emt 0:02:12]} 26. Be5 {[%emt 0:02:26]} Rf8 $1 {[%emt 0:00:21]} (26... f6 27. Bxf6 $1 Rf8 28. Qe5 Qxe5 29. Bxe5 $16) 27. Kh2 {[%emt 0:01:00]} Bc8 {[%emt 0:00:42]} 28. Bf1 {[%emt 0:00:43]} f6 {[%emt 0:00:42]} 29. Bc3 {[%emt 0:00:02]} Nxc3 {[%emt 0:01:13]} 30. bxc3 {[%emt 0:00:01]} Qf2+ {[%emt 0:00:00]} 31. Bg2 {[%emt 0:00:01]} e5 {[%emt 0:00:12]} 32. Qc1 {[%emt 0:00:01]} Be6 $36 {[%emt 0:01:27][%mdl 2048] White is under strong pressure.} 33. Qa3 {[%emt 0:00:10]} Re8 {[%emt 0:00:30] Against Qe7} 34. Qa4 $2 {[%emt 0:01:33]} (34. Rb1 $15) 34... Rb8 $19 {[%emt 0:00:04]} 35. Qc6 {[%emt 0:00:26]} Qb6 $2 {[%emt 0:00:12]} (35... Bf7 $19 {is more deadly. White must now prevent ...Rb2.} 36. Qxc7 Rb2) 36. Qa4 {[%emt 0:00:05]} Qb3 {[%emt 0:00:10]} 37. Qa7 {[%emt 0:00:01]} Qb6 {[%emt 0:01:04]} (37... Rc8 $17 38. Qa1 Rb8) 38. Qa3 {[%emt 0:00:13]} (38. Qa4 $1 $11) 38... Kf7 $17 {[%emt 0:01:08]} 39. h5 $2 {[%emt 0:00:01][%mdl 8192]} (39. Rd2 $17 {is more resistant.}) 39... Qb3 $2 {[%emt 0:00:31]} (39... Qf2 $19 {And now ...Rb2 would win.} 40. Rf1 Qe2) 40. Qa5 {[%emt 0:00:12]} Qb6 $2 {[%emt 0:00:17][%mdl 8192]} ({But not} 40... Qxd1 $6 41. Qxc7+ Kg8 42. Qxb8+ Kh7 43. g4 $11 (43. Qe8 Bg8 $11)) (40... Qb7 $17) 41. Qa3 $1 $19 {[%emt 0:00:07]} Qc6 $2 {[%emt 0:00:04]} ({Black should play} 41... Qf2 $19 {Strongly threatening ...Rb2.} 42. Rf1 Qe2) 42. Bh3 $1 $11 {[%emt 0:00:13]} Rb3 {[%emt 0:00:40]} 43. Bxe6+ {[%emt 0:00:08]} Qxe6 {[%emt 0:00:08][%mdl 4096] Endgame KQR-KQR} 44. Qc5 {[%emt 0:00:32]} Rb2+ {[%emt 0:00:08]} 45. Kg1 {[%emt 0:00:02]} Qb6 {[%emt 0:00:43]} (45... Qh3 {leads to mate.} 46. Qxc4+ Ke8 47. Qg8+ Ke7 48. Qxg7+ Ke8 49. Qg8+ Ke7 50. Qd8+ Kf7 51. Qxc7+) 46. Rd7+ {[%emt 0:00:02]} Kg8 {[%emt 0:00:01]} 47. Rxc7 {[%emt 0:00:14] The board is on fire.} Rb1+ {[%emt 0:00:03]} 48. Kg2 {[%emt 0:00:02]} Qb2+ $1 {[%emt 0:00:22]} 49. Kh3 {[%emt 0:01:11]} Rh1+ {[%emt 0:00:11]} 50. Kg4 {[%emt 0:00:03]} Qd2 $4 {[%emt 0:00:00][%mdl 8192]} (50... Qg2 $11 51. Rxg7+ Kxg7 52. Qe7+ Kh8 53. Qxf6+ Kg8 54. Qd8+ Kh7 55. Qe7+ (55. Qd7+ Kh8 $11) 55... Kh8 56. Qf6+ Kg8 57. Qd8+ Kh7 58. Qe7+ (58. Qd7+ Kh8 $11) 58... Kh8 59. Qf6+) 51. Qd5+ $18 {[%emt 0:00:55]} Qxd5 {[%emt 0:00:07]} 52. exd5 {[%emt 0:00:00] KR-KR} Rd1 {[%emt 0:00:04]} 53. Rd7 {[%emt 0:02:51]} Rd3 {[%emt 0:00:15]} 54. d6 {[%emt 0:00:01]} Rxc3 {[%emt 0:00:22] [#]} 55. Kf5 {[%emt 0:00:00] White mates.} Rxf3+ {[%emt 0:00:13] [#]} 56. Ke6 $1 {[%emt 0:00:01]} Rd3 {[%emt 0:00:15]} 57. Rc7 {[%emt 0:00:15]} e4 {[%emt 0:00:03]} 58. d7 {[%emt 0:00:18]} e3 {[%emt 0:00:01]} 59. Rxc4 {[%emt 0:00:04]} Kh7 {[%emt 0:00:03]} 60. Ke7 {[%emt 0:00:17]} g5 {[%emt 0:00:12]} 61. d8=Q {[%emt 0:00:20]} Rxd8 {[%emt 0:00:01]} 62. Kxd8 {[%emt 0:00:00]} f5 {[%emt 0:00:00]} 63. Rc7+ {[%emt 0:00:01]} Kg8 {[%emt 0:00:04]} 64. Re7 {[%emt 0:00:03]} f4 {[%emt 0:00:01]} 65. gxf4 {[%emt 0:00:03]} gxf4 {[%emt 0:00:04]} 66. Ke8 {[%emt 0:00:02] What a bad dream for Black.  Weighted Error Value: White=0.22 (precise) /Black=0.32} 1-0

[Event "Julius Baer Generation Cup Prelims 2022"]
[Site "Online"]
[Date "2022.09.14"]
[Round "15.3"]
[White "Adhiban, B.."]
[Black "Wojtaszek, Radoslaw"]
[Result "1/2-1/2"]
[ECO "A01"]
[WhiteElo "2603"]
[BlackElo "2696"]
[Annotator "TA"]
[PlyCount "26"]
[EventDate "2022.09.12"]
[EventType "tourn"]
[EventCountry "NET"]
[SourceTitle "playchess.com"]
[Source "ChessBase"]
[SourceQuality "1"]
[TimeControl "900+10"]

{[%evp 9,26,-47,-37,-59,0,-88,-70,-113,-87,-87,0,0,0,0,0,0,0,0,0]} 1. b3 {[%emt 0:00:00]} d5 {[%emt 0:00:00]} 2. Bb2 {[%emt 0:00:02]} Bg4 {[%emt 0:00:06]} 3. f3 {[%emt 0:00:05]} Bf5 {[%emt 0:00:02]} 4. e4 {[%emt 0:00:07]} dxe4 {[%emt 0:00:26]} 5. Nc3 {[%emt 0:00:02]} Nf6 {[%emt 0:00:16]} 6. Qe2 {[%emt 0:04:02][%cal Rf3e4] A01: Nimzowitsch-Larsen Opening.} Nc6 {[%emt 0:03:02] [#]} (6... exf3 $1 $15 7. Qxf3 Qc8) 7. Qb5 $146 {[%emt 0:00:54]} (7. fxe4 $11 {keeps the balance.} Bg6 8. Nf3) ({Predecessor:} 7. fxe4 Nd4 8. Qd3 Bg6 9. Nf3 Nc6 10. Qb5 Qc8 11. O-O-O a6 12. Qe2 e5 13. Nd5 {1-0 (33) Chandra,A (2510)-Terry,R (2492) Chess.com INT 2018}) 7... Qd7 {[%emt 0:01:32]} 8. Qxb7 {[%emt 0:02:26] [#] Black is slightly better.} Rb8 {[%emt 0:00:08]} 9. Qa6 {[%emt 0:00:01]} Rb6 {[%emt 0:04:51]} (9... Nb4 $17 10. Qxa7 Nxc2+ 11. Kf2 Rd8) 10. Qa4 $11 {[%emt 0:00:14] The position is equal.} Rb4 {[%emt 0:00:03]} 11. Qa6 {[%emt 0:00:03]} Rb6 {[%emt 0:00:12]} 12. Qa4 {[%emt 0:00:02]} Rb4 {[%emt 0:00:23]} 13. Qa6 {[%emt 0:00:02]} Rb6 {[%emt 0:00:12] Weighted Error Value: White=0.23 (precise) /Black=0.20 (precise)} 1/2-1/2